[Event "Titled Tuesday Blitz May 4 2021"]
[White "Jary, Sergey"]
[Black "Kriti Mayur Patel"]
[WhiteFideId "14110350"]
[BlackFideId "35061780"]
[WhiteElo "2260"]
[BlackElo "1212"]
[Result "1-0"]
[Round "07"]
[TimeControl "180+1"]
[Date "2021.05.04"]
[WhiteClock "0:02:01"]
[BlackClock "0:01:35"]

1. Nf3 {[%clk 0:03:00]}  d5 {[%clk 0:02:59]} 2. g3 {[%clk 0:02:59]}  Nf6 {[%clk 0:02:59]} 3. c4 {[%clk 0:02:59]}  e6 {[%clk 0:02:58]} 4. Qc2 {[%clk 0:02:59]}  Be7 {[%clk 0:02:57]} 5. Bg2 {[%clk 0:02:59]}  O-O {[%clk 0:02:57]} 6. O-O {[%clk 0:02:58]}  dxc4 {[%clk 0:02:54]} 7. Qxc4 {[%clk 0:02:58]}  a6 {[%clk 0:02:53]} 8. a4 {[%clk 0:02:57]}  Bd7 {[%clk 0:02:52]} 9. a5 {[%clk 0:02:55]}  Nc6 {[%clk 0:02:50]} 10. d4 {[%clk 0:02:55]}  b5 {[%clk 0:02:50]} 11. Qb3 {[%clk 0:02:50]}  Nd5 {[%clk 0:02:41]} 12. Rd1 {[%clk 0:02:48]}  Bf6 {[%clk 0:02:40]} 13. e4 {[%clk 0:02:46]}  Ndb4 {[%clk 0:02:39]} 14. Nc3 {[%clk 0:02:44]}  Be8 {[%clk 0:02:32]} 15. d5 {[%clk 0:02:44]}  exd5 {[%clk 0:02:24]} 16. exd5 {[%clk 0:02:44]}  Bxc3 {[%clk 0:02:03]} 17. bxc3 {[%clk 0:02:40]}  Nxd5 {[%clk 0:02:01]} 18. Qxd5 {[%clk 0:02:38]}  Qf6 {[%clk 0:02:01]} 19. Ba3 {[%clk 0:02:36]}  Qxc3 {[%clk 0:01:59]} 20. Bxf8 {[%clk 0:02:34]}  Kxf8 {[%clk 0:02:00]} 21. Rac1 {[%clk 0:02:34]}  Qf6 {[%clk 0:01:58]} 22. Nd4 {[%clk 0:02:31]}  Nxd4 {[%clk 0:01:53]} 23. Qxd4 {[%clk 0:02:29]}  Qxd4 {[%clk 0:01:52]} 24. Rxd4 {[%clk 0:02:29]}  Rc8 {[%clk 0:01:51]} 25. Bb7 {[%clk 0:02:28]}  Rb8 {[%clk 0:01:50]} 26. Rxc7 {[%clk 0:02:28]}  f6 {[%clk 0:01:45]} 27. f4 {[%clk 0:02:25]}  Bg6 {[%clk 0:01:42]} 28. Bxa6 {[%clk 0:02:24]}  b4 {[%clk 0:01:41]} 29. Rc8+ {[%clk 0:02:24]}  Rxc8 {[%clk 0:01:41]} 30. Bxc8 {[%clk 0:02:23]}  b3 {[%clk 0:01:40]} 31. Rb4 {[%clk 0:02:22]}  b2 {[%clk 0:01:39]} 32. Rxb2 {[%clk 0:02:20]}  Ke7 {[%clk 0:01:39]} 33. a6 {[%clk 0:02:20]}  Kd6 {[%clk 0:01:39]} 34. a7 {[%clk 0:02:19]}  Kd5 {[%clk 0:01:38]} 35. a8=Q+ {[%clk 0:02:17]}  Kd4 {[%clk 0:01:37]} 36. Qa3 {[%clk 0:02:17]}  Ke4 {[%clk 0:01:36]} 37. Rb4+ {[%clk 0:02:12]}  Kd5 {[%clk 0:01:35]} 38. Qa5+ {[%clk 0:02:10]}  Kd6 {[%clk 0:01:35]} 39. Qd8+ {[%clk 0:02:08]}  Kc5 {[%clk 0:01:34]} 40. Rb6 {[%clk 0:02:06]}  Kc4 {[%clk 0:01:34]} 41. Qd6 {[%clk 0:02:06]}  Kc3 {[%clk 0:01:34]} 42. Rb4 {[%clk 0:02:07]}  Kc2 {[%clk 0:01:35]} 43. Qd4 {[%clk 0:02:07]}  Kc1 {[%clk 0:01:36]} 44. Qb2+ {[%clk 0:02:01]}  Kd1 {[%clk 0:01:35]} 45. Bg4+ {[%clk 0:02:00]}  Ke1 {[%clk 0:01:35]} 46. Qe2# {[%clk 0:02:01]} 1-0


[Site "https://www.chess.com"]

[Event "Titled Tuesday Blitz May 4 2021"]
[White "Josse, Mark"]
[Black "Sergey85Rodchenkov"]
[WhiteFideId "414476"]
[WhiteElo "2284"]
[BlackElo "2540"]
[Result "0-1"]
[Round "07"]
[TimeControl "180+1"]
[Date "2021.05.04"]
[WhiteClock "0:00:04"]
[BlackClock "0:00:49"]

1. c4 {[%clk 0:03:00]}  Nf6 {[%clk 0:02:58]} 2. Nc3 {[%clk 0:03:00]}  d5 {[%clk 0:02:59]} 3. cxd5 {[%clk 0:02:59]}  Nxd5 {[%clk 0:02:58]} 4. e4 {[%clk 0:02:58]}  Nxc3 {[%clk 0:02:58]} 5. dxc3 {[%clk 0:02:58]}  Qxd1+ {[%clk 0:02:57]} 6. Kxd1 {[%clk 0:02:58]}  e5 {[%clk 0:02:58]} 7. Be3 {[%clk 0:02:57]}  Bd6 {[%clk 0:02:57]} 8. Bc4 {[%clk 0:02:55]}  Be6 {[%clk 0:02:57]} 9. Bb3 {[%clk 0:02:55]}  Ke7 {[%clk 0:02:57]} 10. Kc2 {[%clk 0:02:55]}  Nd7 {[%clk 0:02:57]} 11. Ne2 {[%clk 0:02:52]}  a5 {[%clk 0:02:55]} 12. Bxe6 {[%clk 0:02:51]}  Kxe6 {[%clk 0:02:53]} 13. Rhd1 {[%clk 0:02:48]}  a4 {[%clk 0:02:53]} 14. b4 {[%clk 0:02:45]}  b5 {[%clk 0:02:48]} 15. c4 {[%clk 0:02:43]}  bxc4 {[%clk 0:02:46]} 16. a3 {[%clk 0:02:43]}  Rhd8 {[%clk 0:02:24]} 17. Kc3 {[%clk 0:02:41]}  Nb6 {[%clk 0:02:24]} 18. Bxb6 {[%clk 0:02:40]}  cxb6 {[%clk 0:02:24]} 19. Kxc4 {[%clk 0:02:38]}  Rac8+ {[%clk 0:02:23]} 20. Kb5 {[%clk 0:02:38]}  Rc2 {[%clk 0:02:22]} 21. Ng3 {[%clk 0:02:32]}  g6 {[%clk 0:02:19]} 22. Kxb6 {[%clk 0:02:23]}  Rb8+ {[%clk 0:02:14]} 23. Ka5 {[%clk 0:02:19]}  Rc7 {[%clk 0:02:12]} 24. Kxa4 {[%clk 0:02:18]}  Rc3 {[%clk 0:02:10]} 25. Rd5 {[%clk 0:01:54]}  Bc7 {[%clk 0:02:04]} 26. Rc5 {[%clk 0:01:26]}  Rxc5 {[%clk 0:01:46]} 27. bxc5 {[%clk 0:01:25]}  Kd7 {[%clk 0:01:47]} 28. Rd1+ {[%clk 0:01:17]}  Kc6 {[%clk 0:01:47]} 29. Rd5 {[%clk 0:01:17]}  Rb2 {[%clk 0:01:43]} 30. Nf1 {[%clk 0:01:13]}  Rxf2 {[%clk 0:01:43]} 31. Ne3 {[%clk 0:01:12]}  Re2 {[%clk 0:01:42]} 32. Rd3 {[%clk 0:01:03]}  Kxc5 {[%clk 0:01:35]} 33. Rc3+ {[%clk 0:01:01]}  Kd6 {[%clk 0:01:28]} 34. Nc4+ {[%clk 0:00:54]}  Kd7 {[%clk 0:01:28]} 35. Kb5 {[%clk 0:00:39]}  Rxe4 {[%clk 0:01:28]} 36. a4 {[%clk 0:00:39]}  Re2 {[%clk 0:01:27]} 37. a5 {[%clk 0:00:37]}  Bxa5 {[%clk 0:01:19]} 38. Kxa5 {[%clk 0:00:29]}  Ke6 {[%clk 0:01:19]} 39. Kb5 {[%clk 0:00:27]}  Rxg2 {[%clk 0:01:18]} 40. h3 {[%clk 0:00:26]}  f5 {[%clk 0:01:17]} 41. Kc5 {[%clk 0:00:26]}  e4 {[%clk 0:01:17]} 42. Kd4 {[%clk 0:00:26]}  h5 {[%clk 0:01:14]} 43. Ne3 {[%clk 0:00:18]}  Rd2+ {[%clk 0:01:12]} 44. Kc4 {[%clk 0:00:18]}  h4 {[%clk 0:01:09]} 45. Ra3 {[%clk 0:00:14]}  Ke5 {[%clk 0:01:08]} 46. Ra5+ {[%clk 0:00:14]}  Kf4 {[%clk 0:01:08]} 47. Nd5+ {[%clk 0:00:14]}  Kg5 {[%clk 0:01:03]} 48. Ra3 {[%clk 0:00:12]}  Rg2 {[%clk 0:01:00]} 49. Kd4 {[%clk 0:00:10]}  Rg3 {[%clk 0:01:00]} 50. Rxg3+ {[%clk 0:00:10]}  hxg3 {[%clk 0:01:00]} 51. Ke3 {[%clk 0:00:10]}  Kh4 {[%clk 0:00:58]} 52. Nf4 {[%clk 0:00:10]}  g5 {[%clk 0:00:58]} 53. Ne2 {[%clk 0:00:10]}  f4+ {[%clk 0:00:58]} 54. Kxe4 {[%clk 0:00:10]}  Kxh3 {[%clk 0:00:57]} 55. Kf3 {[%clk 0:00:09]}  Kh2 {[%clk 0:00:53]} 56. Kg4 {[%clk 0:00:07]}  g2 {[%clk 0:00:51]} 57. Nd4 {[%clk 0:00:04]}  g1=Q+ {[%clk 0:00:49]} 0-1


[Site "https://www.chess.com"]

[Event "Titled Tuesday Blitz May 4 2021"]
[White "Juhasz, Agoston"]
[Black "Shahinyan, David"]
[WhiteFideId "778346"]
[BlackFideId "13304380"]
[WhiteElo "2211"]
[BlackElo "2372"]
[Result "1-0"]
[Round "07"]
[TimeControl "180+1"]
[Date "2021.05.04"]
[WhiteClock "0:00:05"]
[BlackClock "0:00:02"]

1. e4 {[%clk 0:03:00]}  d6 {[%clk 0:02:59]} 2. d4 {[%clk 0:02:58]}  Nf6 {[%clk 0:02:59]} 3. Nc3 {[%clk 0:02:59]}  e5 {[%clk 0:02:59]} 4. dxe5 {[%clk 0:02:55]}  dxe5 {[%clk 0:03:00]} 5. Qxd8+ {[%clk 0:02:55]}  Kxd8 {[%clk 0:03:00]} 6. Bc4 {[%clk 0:02:55]}  Ke8 {[%clk 0:03:00]} 7. Nf3 {[%clk 0:02:51]}  Bd6 {[%clk 0:02:58]} 8. Bg5 {[%clk 0:02:36]}  Nbd7 {[%clk 0:02:56]} 9. a4 {[%clk 0:02:30]}  a6 {[%clk 0:02:49]} 10. O-O-O {[%clk 0:02:27]}  b6 {[%clk 0:02:45]} 11. Nd5 {[%clk 0:02:21]}  Nxe4 {[%clk 0:02:38]} 12. Nxc7+ {[%clk 0:01:06]}  Bxc7 {[%clk 0:02:34]} 13. Bd5 {[%clk 0:01:07]}  Nxg5 {[%clk 0:02:29]} 14. Bxa8 {[%clk 0:00:42]}  Nxf3 {[%clk 0:02:27]} 15. gxf3 {[%clk 0:00:38]}  Ke7 {[%clk 0:02:21]} 16. b4 {[%clk 0:00:35]}  Nf6 {[%clk 0:02:18]} 17. Bc6 {[%clk 0:00:32]}  Bd6 {[%clk 0:02:12]} 18. c3 {[%clk 0:00:31]}  Bf5 {[%clk 0:02:09]} 19. Rhe1 {[%clk 0:00:31]}  Rc8 {[%clk 0:02:05]} 20. b5 {[%clk 0:00:26]}  a5 {[%clk 0:01:52]} 21. Kb2 {[%clk 0:00:24]}  g5 {[%clk 0:01:47]} 22. Rd2 {[%clk 0:00:23]}  Bd7 {[%clk 0:01:32]} 23. Bxd7 {[%clk 0:00:19]}  Nxd7 {[%clk 0:01:33]} 24. Red1 {[%clk 0:00:19]}  Bc5 {[%clk 0:01:32]} 25. Rxd7+ {[%clk 0:00:18]}  Ke6 {[%clk 0:01:32]} 26. Rb7 {[%clk 0:00:17]}  Bxf2 {[%clk 0:01:27]} 27. Rdd7 {[%clk 0:00:17]}  f5 {[%clk 0:01:26]} 28. Rxh7 {[%clk 0:00:14]}  e4 {[%clk 0:01:26]} 29. Rhe7+ {[%clk 0:00:12]}  Kf6 {[%clk 0:01:14]} 30. fxe4 {[%clk 0:00:13]}  f4 {[%clk 0:01:15]} 31. e5+ {[%clk 0:00:10]}  Kf5 {[%clk 0:01:10]} 32. e6 {[%clk 0:00:06]}  Bc5 {[%clk 0:01:10]} 33. Rec7 {[%clk 0:00:05]}  Rxc7 {[%clk 0:00:59]} 34. Rxc7 {[%clk 0:00:06]}  Kxe6 {[%clk 0:00:59]} 35. Kc2 {[%clk 0:00:05]}  Bg1 {[%clk 0:00:56]} 36. h3 {[%clk 0:00:04]}  Kf5 {[%clk 0:00:56]} 37. Kd3 {[%clk 0:00:03]}  Kg6 {[%clk 0:00:47]} 38. Rc8 {[%clk 0:00:03]}  Kh5 {[%clk 0:00:42]} 39. Rh8+ {[%clk 0:00:04]}  Kg6 {[%clk 0:00:42]} 40. Ke4 {[%clk 0:00:05]}  Bc5 {[%clk 0:00:36]} 41. Kf3 {[%clk 0:00:05]}  Kf5 {[%clk 0:00:32]} 42. Rh7 {[%clk 0:00:04]}  Kg6 {[%clk 0:00:30]} 43. Rc7 {[%clk 0:00:04]}  Be3 {[%clk 0:00:29]} 44. Kg4 {[%clk 0:00:03]}  Kf6 {[%clk 0:00:27]} 45. Rc6+ {[%clk 0:00:03]}  Ke5 {[%clk 0:00:27]} 46. Rc8 {[%clk 0:00:02]}  Kf6 {[%clk 0:00:24]} 47. Rf8+ {[%clk 0:00:01]}  Kg6 {[%clk 0:00:21]} 48. Rc8 {[%clk 0:00:02]}  Kf6 {[%clk 0:00:20]} 49. Rc6+ {[%clk 0:00:03]}  Ke5 {[%clk 0:00:13]} 50. Rc7 {[%clk 0:00:04]}  Kd6 {[%clk 0:00:12]} 51. Rf7 {[%clk 0:00:04]}  Kc5 {[%clk 0:00:12]} 52. Rh7 {[%clk 0:00:04]}  Kc4 {[%clk 0:00:12]} 53. Rf7 {[%clk 0:00:05]}  Kxc3 {[%clk 0:00:12]} 54. Kxg5 {[%clk 0:00:05]}  Kb4 {[%clk 0:00:12]} 55. Kg4 {[%clk 0:00:05]}  Kxa4 {[%clk 0:00:11]} 56. h4 {[%clk 0:00:04]}  Kxb5 {[%clk 0:00:07]} 57. h5 {[%clk 0:00:04]}  a4 {[%clk 0:00:07]} 58. h6 {[%clk 0:00:04]}  f3 {[%clk 0:00:08]} 59. h7 {[%clk 0:00:02]}  f2 {[%clk 0:00:09]} 60. h8=Q {[%clk 0:00:02]}  f1=Q {[%clk 0:00:10]} 61. Rxf1 {[%clk 0:00:01]}  Kb4 {[%clk 0:00:10]} 62. Qe5 {[%clk 0:00:02]}  Bc5 {[%clk 0:00:09]} 63. Qe4+ {[%clk 0:00:03]}  Ka5 {[%clk 0:00:08]} 64. Rf3 {[%clk 0:00:03]}  a3 {[%clk 0:00:08]} 65. Qd5 {[%clk 0:00:04]}  Ka6 {[%clk 0:00:07]} 66. Rc3 {[%clk 0:00:04]}  Kb5 {[%clk 0:00:06]} 67. Qa2 {[%clk 0:00:04]}  Ka4 {[%clk 0:00:05]} 68. Rb3 {[%clk 0:00:05]}  b5 {[%clk 0:00:05]} 69. Kf3 {[%clk 0:00:05]}  Bd6 {[%clk 0:00:05]} 70. Ke2 {[%clk 0:00:05]}  Ka5 {[%clk 0:00:06]} 71. Kd3 {[%clk 0:00:06]}  Kb6 {[%clk 0:00:07]} 72. Rb1 {[%clk 0:00:06]}  b4 {[%clk 0:00:06]} 73. Qb3 {[%clk 0:00:06]}  Kb5 {[%clk 0:00:05]} 74. Rh1 {[%clk 0:00:06]}  a2 {[%clk 0:00:04]} 75. Rh5+ {[%clk 0:00:06]}  Kc6 {[%clk 0:00:04]} 76. Qxa2 {[%clk 0:00:07]}  b3 {[%clk 0:00:04]} 77. Qxb3 {[%clk 0:00:07]}  Bc7 {[%clk 0:00:05]} 78. Qd5+ {[%clk 0:00:07]}  Kb6 {[%clk 0:00:05]} 79. Qb5+ {[%clk 0:00:06]}  Ka7 {[%clk 0:00:04]} 80. Rh7 {[%clk 0:00:06]}  Ka8 {[%clk 0:00:04]} 81. Qc6+ {[%clk 0:00:05]}  Ka7 {[%clk 0:00:02]} 82. Qxc7+ {[%clk 0:00:06]}  Ka6 {[%clk 0:00:03]} 83. Qc4+ {[%clk 0:00:04]}  Kb6 {[%clk 0:00:03]} 84. Rh6+ {[%clk 0:00:04]}  Ka7 {[%clk 0:00:03]} 85. Qf7+ {[%clk 0:00:04]}  Kb8 {[%clk 0:00:02]} 86. Rh8# {[%clk 0:00:05]} 1-0


[Site "https://www.chess.com"]

[Event "Titled Tuesday Blitz May 4 2021"]
[White "Kiseljova, Marya"]
[Black "Krzywda, Andrzej"]
[WhiteFideId "4155009"]
[BlackFideId "1114565"]
[WhiteElo "1797"]
[BlackElo "2100"]
[Result "0-1"]
[Round "07"]
[TimeControl "180+1"]
[Date "2021.05.04"]
[WhiteClock "0:00:08"]
[BlackClock "0:00:08"]

1. d4 {[%clk 0:03:00]}  Nf6 {[%clk 0:02:59]} 2. Bf4 {[%clk 0:03:00]}  d5 {[%clk 0:02:56]} 3. e3 {[%clk 0:03:00]}  c5 {[%clk 0:02:57]} 4. c3 {[%clk 0:02:59]}  Nc6 {[%clk 0:02:57]} 5. Nd2 {[%clk 0:02:59]}  Bf5 {[%clk 0:02:54]} 6. Ngf3 {[%clk 0:02:54]}  e6 {[%clk 0:02:47]} 7. Bb5 {[%clk 0:02:50]}  Qb6 {[%clk 0:02:40]} 8. Qa4 {[%clk 0:02:48]}  Nd7 {[%clk 0:02:39]} 9. Nh4 {[%clk 0:02:28]}  Bg6 {[%clk 0:02:34]} 10. Nxg6 {[%clk 0:02:28]}  hxg6 {[%clk 0:02:35]} 11. O-O {[%clk 0:02:23]}  Be7 {[%clk 0:02:24]} 12. dxc5 {[%clk 0:02:17]}  Nxc5 {[%clk 0:02:22]} 13. Bxc6+ {[%clk 0:02:15]}  bxc6 {[%clk 0:02:22]} 14. Qc2 {[%clk 0:02:12]}  a5 {[%clk 0:01:41]} 15. b3 {[%clk 0:02:02]}  Rd8 {[%clk 0:01:40]} 16. Rfb1 {[%clk 0:01:57]}  Qa6 {[%clk 0:01:32]} 17. b4 {[%clk 0:01:53]}  axb4 {[%clk 0:01:23]} 18. cxb4 {[%clk 0:01:48]}  Nd7 {[%clk 0:01:10]} 19. a3 {[%clk 0:01:03]}  O-O {[%clk 0:01:06]} 20. Rc1 {[%clk 0:00:58]}  Rc8 {[%clk 0:01:05]} 21. Qb2 {[%clk 0:00:57]}  Bf6 {[%clk 0:01:04]} 22. Qb3 {[%clk 0:00:54]}  Bxa1 {[%clk 0:01:04]} 23. Rxa1 {[%clk 0:00:55]}  Qe2 {[%clk 0:00:42]} 24. Nf3 {[%clk 0:00:53]}  c5 {[%clk 0:00:40]} 25. Bd6 {[%clk 0:00:42]}  c4 {[%clk 0:00:39]} 26. Qc3 {[%clk 0:00:39]}  Rfe8 {[%clk 0:00:35]} 27. h3 {[%clk 0:00:30]}  f6 {[%clk 0:00:20]} 28. a4 {[%clk 0:00:29]}  Kf7 {[%clk 0:00:19]} 29. a5 {[%clk 0:00:27]}  Rc6 {[%clk 0:00:15]} 30. Bg3 {[%clk 0:00:23]}  e5 {[%clk 0:00:15]} 31. a6 {[%clk 0:00:22]}  Ra8 {[%clk 0:00:10]} 32. b5 {[%clk 0:00:21]}  Rb6 {[%clk 0:00:11]} 33. Rb1 {[%clk 0:00:18]}  Raxa6 {[%clk 0:00:09]} 34. Qb4 {[%clk 0:00:15]}  Ra7 {[%clk 0:00:08]} 35. Qc5 {[%clk 0:00:12]}  Rab7 {[%clk 0:00:08]} 36. Qb4 {[%clk 0:00:12]}  Qd3 {[%clk 0:00:08]} 37. Ne1 {[%clk 0:00:11]}  Qf5 {[%clk 0:00:05]} 38. Qa4 {[%clk 0:00:09]}  Qxb1 {[%clk 0:00:04]} 39. Qa5 {[%clk 0:00:08]}  Qxb5 {[%clk 0:00:04]} 40. Qxb5 {[%clk 0:00:08]}  Rxb5 {[%clk 0:00:03]} 41. Nc2 {[%clk 0:00:09]}  Rb1+ {[%clk 0:00:04]} 42. Kh2 {[%clk 0:00:08]}  R7b2 {[%clk 0:00:05]} 43. Na3 {[%clk 0:00:07]}  Ra1 {[%clk 0:00:05]} 44. Nxc4 {[%clk 0:00:07]}  dxc4 {[%clk 0:00:05]} 45. f3 {[%clk 0:00:07]}  Nc5 {[%clk 0:00:06]} 46. e4 {[%clk 0:00:07]}  Raa2 {[%clk 0:00:06]} 47. f4 {[%clk 0:00:07]}  Rxg2+ {[%clk 0:00:07]} 48. Kh1 {[%clk 0:00:08]}  Rxg3 {[%clk 0:00:07]} 49. fxe5 {[%clk 0:00:09]}  fxe5 {[%clk 0:00:08]} 50. h4 {[%clk 0:00:08]}  Rb3 {[%clk 0:00:07]} 51. h5 {[%clk 0:00:08]}  Rb1# {[%clk 0:00:08]} 0-1


[Site "https://www.chess.com"]

[Event "Titled Tuesday Blitz May 4 2021"]
[White "Komiagina, Maria"]
[Black "Cuevas, Alex"]
[WhiteFideId "4153987"]
[BlackFideId "114260"]
[WhiteElo "2014"]
[BlackElo "2289"]
[Result "0-1"]
[Round "07"]
[TimeControl "180+1"]
[Date "2021.05.04"]
[WhiteClock "0:00:04"]
[BlackClock "0:00:49"]

1. e4 {[%clk 0:02:59]}  c6 {[%clk 0:02:59]} 2. d4 {[%clk 0:02:59]}  d5 {[%clk 0:03:00]} 3. e5 {[%clk 0:02:58]}  c5 {[%clk 0:03:00]} 4. dxc5 {[%clk 0:02:58]}  e6 {[%clk 0:02:59]} 5. Bb5+ {[%clk 0:02:56]}  Nd7 {[%clk 0:02:59]} 6. Nf3 {[%clk 0:02:52]}  Bxc5 {[%clk 0:02:58]} 7. O-O {[%clk 0:02:47]}  Ne7 {[%clk 0:02:56]} 8. c3 {[%clk 0:02:39]}  Ng6 {[%clk 0:02:53]} 9. Qe2 {[%clk 0:02:27]}  Qc7 {[%clk 0:02:47]} 10. h4 {[%clk 0:02:19]}  O-O {[%clk 0:02:43]} 11. Bxd7 {[%clk 0:02:12]}  Bxd7 {[%clk 0:02:39]} 12. h5 {[%clk 0:02:12]}  Ne7 {[%clk 0:02:38]} 13. h6 {[%clk 0:02:09]}  g6 {[%clk 0:02:38]} 14. Bg5 {[%clk 0:02:07]}  Nc6 {[%clk 0:02:33]} 15. Nbd2 {[%clk 0:02:06]}  Be7 {[%clk 0:02:31]} 16. Bxe7 {[%clk 0:01:55]}  Nxe7 {[%clk 0:02:30]} 17. Nd4 {[%clk 0:01:55]}  a6 {[%clk 0:02:23]} 18. Rae1 {[%clk 0:01:53]}  Nf5 {[%clk 0:02:20]} 19. Nxf5 {[%clk 0:01:49]}  gxf5 {[%clk 0:02:20]} 20. Qf3 {[%clk 0:01:43]}  Kh8 {[%clk 0:02:18]} 21. Nb3 {[%clk 0:01:35]}  Rg8 {[%clk 0:02:16]} 22. Nd4 {[%clk 0:01:33]}  Rg6 {[%clk 0:02:14]} 23. Qe3 {[%clk 0:01:18]}  Rag8 {[%clk 0:02:12]} 24. g3 {[%clk 0:01:16]}  Rg4 {[%clk 0:01:54]} 25. Qf3 {[%clk 0:00:46]}  Qd8 {[%clk 0:01:38]} 26. Ne2 {[%clk 0:00:42]}  Bb5 {[%clk 0:01:36]} 27. Kg2 {[%clk 0:00:37]}  Qg5 {[%clk 0:01:32]} 28. Nf4 {[%clk 0:00:35]}  Bxf1+ {[%clk 0:01:31]} 29. Kxf1 {[%clk 0:00:34]}  Qxh6 {[%clk 0:01:19]} 30. Ke2 {[%clk 0:00:31]}  Qg7 {[%clk 0:01:18]} 31. Qe3 {[%clk 0:00:30]}  Rxf4 {[%clk 0:01:06]} 32. Qxf4 {[%clk 0:00:25]}  Qg4+ {[%clk 0:01:05]} 33. Ke3 {[%clk 0:00:22]}  Qxf4+ {[%clk 0:01:04]} 34. gxf4 {[%clk 0:00:23]}  Rg4 {[%clk 0:00:56]} 35. Rh1 {[%clk 0:00:21]}  Kg7 {[%clk 0:00:56]} 36. b3 {[%clk 0:00:20]}  b5 {[%clk 0:00:54]} 37. a4 {[%clk 0:00:19]}  bxa4 {[%clk 0:00:53]} 38. bxa4 {[%clk 0:00:19]}  Kg6 {[%clk 0:00:53]} 39. a5 {[%clk 0:00:19]}  h5 {[%clk 0:00:53]} 40. Rh3 {[%clk 0:00:16]}  h4 {[%clk 0:00:52]} 41. Rh2 {[%clk 0:00:16]}  Kh5 {[%clk 0:00:53]} 42. Kf3 {[%clk 0:00:13]}  Rg8 {[%clk 0:00:52]} 43. Rh1 {[%clk 0:00:13]}  Rc8 {[%clk 0:00:51]} 44. Rb1 {[%clk 0:00:10]}  Rxc3+ {[%clk 0:00:51]} 45. Kg2 {[%clk 0:00:11]}  Kg4 {[%clk 0:00:51]} 46. Rb6 {[%clk 0:00:10]}  h3+ {[%clk 0:00:49]} 47. Kh2 {[%clk 0:00:10]}  Rc2 {[%clk 0:00:50]} 48. Kg1 {[%clk 0:00:08]}  Kf3 {[%clk 0:00:49]} 49. Rb3+ {[%clk 0:00:07]}  Kxf4 {[%clk 0:00:49]} 50. Rxh3 {[%clk 0:00:07]}  Kxe5 {[%clk 0:00:49]} 51. Rh7 {[%clk 0:00:07]}  Rc5 {[%clk 0:00:49]} 52. Rxf7 {[%clk 0:00:06]}  Rxa5 {[%clk 0:00:50]} 53. Ra7 {[%clk 0:00:06]}  Ra2 {[%clk 0:00:49]} 54. Kg2 {[%clk 0:00:06]}  Kf4 {[%clk 0:00:49]} 55. Re7 {[%clk 0:00:05]}  e5 {[%clk 0:00:49]} 56. Rd7 {[%clk 0:00:05]}  d4 {[%clk 0:00:49]} 57. Rh7 {[%clk 0:00:04]}  e4 {[%clk 0:00:48]} 58. Rh4+ {[%clk 0:00:04]}  Ke5 {[%clk 0:00:49]} 0-1


[Site "https://www.chess.com"]

[Event "Titled Tuesday Blitz May 4 2021"]
[White "Kovacs, Klara"]
[Black "Haessel, Dale R."]
[WhiteFideId "733210"]
[BlackFideId "2012618"]
[WhiteElo "2120"]
[BlackElo "2167"]
[Result "1-0"]
[Round "07"]
[TimeControl "180+1"]
[Date "2021.05.04"]
[WhiteClock "0:01:36"]
[BlackClock "0:00:53"]

1. Nf3 {[%clk 0:03:00]}  Nf6 {[%clk 0:02:56]} 2. g3 {[%clk 0:03:01]}  g6 {[%clk 0:02:54]} 3. Bg2 {[%clk 0:03:02]}  d5 {[%clk 0:02:53]} 4. O-O {[%clk 0:03:00]}  Bg7 {[%clk 0:02:53]} 5. c4 {[%clk 0:03:01]}  c6 {[%clk 0:02:50]} 6. d4 {[%clk 0:02:52]}  O-O {[%clk 0:02:47]} 7. Nc3 {[%clk 0:02:51]}  dxc4 {[%clk 0:02:47]} 8. a4 {[%clk 0:02:49]}  Nd5 {[%clk 0:02:15]} 9. Bg5 {[%clk 0:02:47]}  h6 {[%clk 0:02:12]} 10. Bd2 {[%clk 0:02:44]}  Nd7 {[%clk 0:01:58]} 11. Rc1 {[%clk 0:02:36]}  Nxc3 {[%clk 0:01:49]} 12. bxc3 {[%clk 0:02:18]}  b5 {[%clk 0:01:49]} 13. Rb1 {[%clk 0:02:17]}  a6 {[%clk 0:01:46]} 14. Qc1 {[%clk 0:02:10]}  Bb7 {[%clk 0:01:39]} 15. Bxh6 {[%clk 0:02:09]}  Qa5 {[%clk 0:01:25]} 16. Bxg7 {[%clk 0:02:08]}  Kxg7 {[%clk 0:01:26]} 17. Qe3 {[%clk 0:02:01]}  Rfe8 {[%clk 0:01:22]} 18. Ne5 {[%clk 0:02:00]}  Nxe5 {[%clk 0:01:16]} 19. Qxe5+ {[%clk 0:02:00]}  Kg8 {[%clk 0:01:03]} 20. axb5 {[%clk 0:01:58]}  axb5 {[%clk 0:01:03]} 21. h4 {[%clk 0:01:56]}  Qxc3 {[%clk 0:01:02]} 22. h5 {[%clk 0:01:54]}  Qc2 {[%clk 0:00:59]} 23. Be4 {[%clk 0:01:49]}  Qxe2 {[%clk 0:00:55]} 24. h6 {[%clk 0:01:37]}  f6 {[%clk 0:00:53]} 25. Bd5+ {[%clk 0:01:36]} 1-0


[Site "https://www.chess.com"]

[Event "Titled Tuesday Blitz May 4 2021"]
[White "Lagunow, Raphael"]
[Black "Gaboyan, Susanna"]
[WhiteFideId "24652644"]
[BlackFideId "13303627"]
[WhiteElo "2400"]
[BlackElo "2135"]
[Result "1/2-1/2"]
[Round "07"]
[TimeControl "180+1"]
[Date "2021.05.04"]
[WhiteClock "0:00:58"]
[BlackClock "0:01:43"]

1. e4 {[%clk 0:03:00]}  c5 {[%clk 0:02:57]} 2. Nf3 {[%clk 0:02:59]}  Nc6 {[%clk 0:02:58]} 3. d4 {[%clk 0:02:58]}  cxd4 {[%clk 0:02:59]} 4. Nxd4 {[%clk 0:02:58]}  Nf6 {[%clk 0:03:00]} 5. Nc3 {[%clk 0:02:58]}  e5 {[%clk 0:03:00]} 6. Ndb5 {[%clk 0:02:57]}  d6 {[%clk 0:03:01]} 7. Bg5 {[%clk 0:02:56]}  a6 {[%clk 0:03:02]} 8. Na3 {[%clk 0:02:56]}  b5 {[%clk 0:03:02]} 9. Nd5 {[%clk 0:02:54]}  Be7 {[%clk 0:03:03]} 10. Bxf6 {[%clk 0:02:53]}  Bxf6 {[%clk 0:03:04]} 11. c3 {[%clk 0:02:53]}  Bg5 {[%clk 0:03:03]} 12. Nc2 {[%clk 0:02:52]}  Ne7 {[%clk 0:03:03]} 13. a4 {[%clk 0:02:18]}  bxa4 {[%clk 0:02:58]} 14. h4 {[%clk 0:01:56]}  Bh6 {[%clk 0:02:51]} 15. Nxe7 {[%clk 0:01:55]}  Qxe7 {[%clk 0:02:52]} 16. Nb4 {[%clk 0:01:53]}  Bb7 {[%clk 0:02:50]} 17. Nd5 {[%clk 0:01:53]}  Bxd5 {[%clk 0:02:34]} 18. Qxd5 {[%clk 0:01:51]}  Rb8 {[%clk 0:02:34]} 19. Bxa6 {[%clk 0:01:39]}  O-O {[%clk 0:02:32]} 20. Bb5 {[%clk 0:01:32]}  Qf6 {[%clk 0:02:11]} 21. g3 {[%clk 0:01:12]}  Rfc8 {[%clk 0:02:05]} 22. c4 {[%clk 0:01:10]}  Qf3 {[%clk 0:01:53]} 23. O-O {[%clk 0:01:08]}  Be3 {[%clk 0:01:43]} 24. fxe3 {[%clk 0:00:59]}  Qxg3+ {[%clk 0:01:43]} 25. Kh1 {[%clk 0:01:00]}  Qh3+ {[%clk 0:01:40]} 26. Kg1 {[%clk 0:00:59]}  Qg3+ {[%clk 0:01:41]} 27. Kh1 {[%clk 0:00:59]}  Qh3+ {[%clk 0:01:42]} 28. Kg1 {[%clk 0:00:58]}  Qg3+ {[%clk 0:01:43]} 1/2-1/2


[Site "https://www.chess.com"]